Cogmind - Beta 14 @@@ ROGUE MODE // 2024.12.13 @ 01:20:55 Player: AshCrow Result: Destroyed by G-34 Mercenary with Small Laser Performance ------------- Evolutions (0) 0 Regions Visited (1) 200 Robots Destroyed (18) 90 Value Destroyed (408) 408 Prototype IDs (0) 0 Alien Tech Used (0) 0 Bonus (0) 0 TOTAL SCORE: 698 Bonus ------- None Cogmind --------- Core Integrity 0/250 Matter 284/300 Energy 100/100 System Corruption 0% Temperature Cool (8) Movement Core (150) Ox2 Location -10/Materials Parts ------- > --- POWER (1) -------- (None) > --- PROPULSION (2) --- (None) > --- UTILITY (2) ------ Small Storage Unit Signal Interpreter > --- WEAPON (2) ------- Light Assault Rifle Light Assault Rifle > --- INVENTORY (8) ---- Ion Engine Ion Engine Ion Engine Light Ion Engine ECM Suite Small Laser Peak State ------------ > --- POWER ------------ Light Nuclear Core > --- PROPULSION ------- Light Treads Light Treads > --- UTILITY ---------- Small Storage Unit Improved Terrain Scanner > --- WEAPON ----------- Light Assault Rifle Light Assault Rifle > --- INVENTORY -------- Ion Engine Ion Engine Ion Engine Light Ion Engine Signal Interpreter Small Laser [Rating: 11] Favorites ----------- Power Light Nuclear Core Engine Ion Engine Power Core Light Nuclear Core Propulsion Light Treads Treads Light Treads Flight Unit Flight Unit Utility Small Storage Unit Device Improved Terrain Scanner Storage Small Storage Unit Processor Signal Interpreter Weapon Light Assault Rifle Energy Gun Small Laser Ballistic Gun Light Assault Rifle Build | -11 -10 ------- Run | Yrd Mat Slots Evolved . | . . Power . | . . Propulsion . | . . Utility . | . . Weapon . | . . Parts Attached 15 | 8 7 Power 4 | 2 2 Engine 3 | 2 1 Core 1 | . 1 Reactor . | . . Propulsion 3 | 2 1 Treads 2 | 2 . Leg . | . . Wheel . | . . Hover . | . . Flight 1 | . 1 Utility 4 | 2 2 Device 2 | 1 1 Storage 1 | 1 . Processor 1 | . 1 Hackware . | . . Protection . | . . Artifact . | . . Weapon 4 | 2 2 Energy Gun 1 | 1 . Energy Cannon . | . . Ballistic Gun 3 | 1 2 Ballistic Cannon . | . . Launcher . | . . Special Weapon . | . . Impact Weapon . | . . Slashing Weapon . | . . Piercing Weapon . | . . Special Melee Weapon . | . . Unidentified Prototypes . | . . Parts Lost 6 | . 6 Power 1 | . 1 Propulsion 3 | . 3 Utility 1 | . 1 Weapon 1 | . 1 Highest Loss Streak 3 | . 3 To Critical Strikes . | . . Average Slot Usage (%) 96 | . 96 Engine 2 | . 2 Core 10 | . 10 Treads 25 | . 25 Flight 1 | . 1 Device 8 | . 8 Storage 14 | . 14 Processor 5 | . 5 Energy Gun 2 | . 2 Ballistic Gun 25 | . 25 Peak Build Rating 11 | 9 11 Average Rating 8 | 6 8 On Entrance 4 | . 9 Naked Turns . | . . Heaviest Build 14 | 13 14 Greatest Support 40 | 40 40 Greatest Overweight (x) 2 | . 2 Average Overweight (x) . | . . Largest Inventory Capacity 8 | 8 8 Average Capacity 7 | 7 8 Most Carried 6 | 2 6 Average Carried 4 | 1 5 Final Capacity 8 | 8 8 Final Carried 6 | 2 6 Class Distribution -------------------- 100% | Mutant Dominant Class ---------------- Mutant | -10/Materials Resources | -11 -10 ----------- Run | Yrd Mat Matter Collected 383 | 181 202 Remotely . | . . Salvage Created 540 | 39 501 Parts 40 | 4 36 Haulers Intercepted . | . . Recyclers Shooed 2 | . 2 Parts Field Recycled . | . . Retrieved Matter . | . . Parts Self-Destructed . | . . Prevented . | . . Kills | -11 -10 ------- Run | Yrd Mat Combat Hostiles Destroyed 15 | . 15 Guns 15 | . 15 Classes Destroyed 5 | 2 3 Tunneler 1 | 1 . Recycler 1 | 1 . Watcher 1 | . 1 Swarmer 6 | . 6 Grunt 9 | . 9 Best Kill Streak 4 | 1 4 Combat Bots Only 3 | . 3 Max Kills in Single Turn 1 | 1 1 Gunslinging . | . . Exploded . | . . Melee . | . . Uniques/NPCs Destroyed . | . . Combat | -11 -10 -------- Run | Yrd Mat Hostile Shots Fired 121 | . 121 Missed 27 | . 27 Damage Taken 973 | . 973 Core 252 | . 252 Absorbed by Shields . | . . Core Remaining (%) 100 | 100 . Volleys Fired 78 | 2 76 Largest 2 | 2 2 Hottest 60 | 60 60 Shots Fired 143 | 4 139 Gun 143 | 4 139 Cannon . | . . Launcher . | . . Special . | . . Kinetic 135 | 2 133 Thermal 8 | 2 6 Explosive . | . . Electromagnetic . | . . Robot Hit Streak 18 | 1 18 Robot Miss Streak 11 | 2 11 Penetration Max . | . . Secondary Targets 1 | . 1 Max Gunslinging Chain 1 | . 1 Shots Hit Robots 88 | 2 86 Core Hits 42 | 3 39 Critical Kills . | . . Critical Parts Destroyed 2 | . 2 Critical Strikes 2 | . 2 Destroy 2 | . 2 Melee Attacks . | . . Impact . | . . Slashing . | . . Piercing . | . . Sneak Attacks . | . . Combat Hostiles . | . . Follow-up Attacks . | . . Damage Inflicted 765 | 46 719 Guns 722 | 20 702 Cannons . | . . Explosions . | . . Melee . | . . Ramming 43 | 26 17 Kinetic 679 | 9 670 Thermal 43 | 11 32 Explosive . | . . Electromagnetic . | . . Impact . | . . Slashing . | . . Piercing . | . . Highest Corruption . | . . Average Corruption . | . . Corruption Purged . | . . Corruption Blocked . | . . Overload Shots . | . . Overflow Damage . | . . Projectiles . | . . Explosions . | . . Melee . | . . Knockbacks 1 | 1 . Impact 1 | 1 . Kinetic . | . . Secondary . | . . Self-Inflicted Damage . | . . Shots . | . . Rammed 20 | 12 8 Targets Rammed 21 | 13 8 Kicked . | . . Crushed 1 | 1 . Highest Temperature 94 | 10 94 Average Temperature 15 | 7 16 Received Heat Transfer 369 | . 369 Siege Activations . | . . Robots Corrupted . | . . Combat Hostiles . | . . Parts Fried . | . . Impact Corruptions . | . . Robots Melted . | . . Combat Hostiles . | . . Parts Melted . | . . Heat Transferred 100 | 25 75 Parts Sabotaged . | . . Parts Stolen . | . . Parts Stripped . | . . Power Chain Reactions . | . . Alert | -11 -10 ------- Run | Yrd Mat Peak Influence 353 | 10 353 Initial 6 | . 6 Average 134 | 5 169 Maximum Alert Level 1 | . 1 Low Security (%) 71 | 100 64 Level 1 28 | . 35 Level 2 . | . . Level 3 . | . . Level 4 . | . . Level 5 . | . . High Security . | . . Max Security . | . . Squads Dispatched 4 | . 4 Investigation 4 | . 4 Extermination . | . . Reinforcement . | . . Assault . | . . Garrison . | . . Intercept . | . . Searches Triggered . | . . Construction Impeded . | . . Haulers Reinforced . | . . Active Scanning Responses . | . . Cargo Convoy Interrupts . | . . Stealth | -11 -10 --------- Run | Yrd Mat Distress Signals 1 | . 1 Communications Jammed . | . . Distress Signals . | . . Times Spotted 25 | . 25 Peak Tracking Total 4 | . 4 Tactical Retreats 1 | . 1 Traps | -11 -10 ------- Run | Yrd Mat Traps Triggered 2 | . 2 Indirectly . | . . Trap Hack Attempts . | . . Triggered . | . . Disarmed . | . . Reprogrammed . | . . Reused . | . . Traps Extracted . | . . Installed . | . . Triggered . | . . Machines | -11 -10 ---------- Run | Yrd Mat Machines Disabled . | . . Max in Single Turn . | . . Machines Repaired . | . . Machines Dismantled . | . . Machines Sabotaged . | . . Overloaded Fab Kills . | . . Hacking | -11 -10 --------- Run | Yrd Mat Machines Accessed 6 | . 6 Terminals 4 | . 4 Fabricators . | . . Repair Stations . | . . Recycling Units 2 | . 2 Scanalyzers . | . . Garrison Access . | . . Total Hacks 16 | . 16 Successful 6 | . 6 Failed 10 | . 10 Catastrophic 1 | . 1 Database Lockouts . | . . Manual 6 | . 6 Terminals 13 | . 13 Fabricators . | . . Repair Stations . | . . Recycling Units 3 | . 3 Scanalyzers . | . . Garrison Access . | . . Terminal Hacks 3 | . 3 Alert Level 1 | . 1 Reinforcement Status 1 | . 1 Recall Investigation 1 | . 1 Fabricator Hacks . | . . Repair Station Hacks . | . . Recycling Unit Hacks . | . . Scanalyzer . | . . Garrison Access Hacks . | . . Unauthorized Hacks 2 | . 2 Terminals . | . . Fabricators . | . . Repair Stations . | . . Recycling Units 2 | . 2 Tunnel 2 | . 2 Scanalyzers . | . . Garrison Access . | . . Data Cores Recovered . | . . Used . | . . Hacking Detections 4 | . 4 Full Trace Events 3 | . 3 Feedback Events . | . . Feedback Blocked . | . . Robot Schematics Acquired . | . . Robots Built . | . . Authchips . | . . Time . | . . Total Robot Build Rating . | . . Part Schematics Acquired . | . . Parts Built . | . . Authchips . | . . Time . | . . Total Part Build Rating . | . . Parts Repaired . | . . Time . | . . Parts Recycled . | . . Recycled Matter . | . . Retrieved Matter . | . . Retrieved Components . | . . Parts Scanalyzed . | . . Part Schematics Acquired . | . . Parts Damaged . | . . Bothacking | -11 -10 ------------ Run | Yrd Mat Used RIF Installer . | . . Robots Hacked . | . . Non-combat . | . . Combat . | . . Robot Hacks Applied . | . . Relay Couplers Released . | . . Fabnet Peak Effective % . | . . Robots Rewired . | . . Allies Hacked . | . . Hacks Repelled . | . . Allies | -11 -10 -------- Run | Yrd Mat Total Allies . | . . Largest Group . | . . Highest-Rated Group . | . . Highest-Rated Ally . | . . Total Orders . | . . Ally Attacks . | . . Total Damage . | . . Kills . | . . Allies Corrupted . | . . Allies Melted . | . . Intel | -11 -10 ------- Run | Yrd Mat Robot Analysis Total . | . . Derelict Logs Recovered . | . . Drone Launches . | . . Drone Recoveries . | . . Exploration | -11 -10 ------------- Run | Yrd Mat Turns Passed 965 | 209 756 Spaces Moved 438 | 108 330 Core 2 | 2 . Treads 399 | 106 293 Legs . | . . Wheels . | . . Hover . | . . Flight 37 | . 37 Fastest Speed 50 | 50 140 Average Speed 162 | 157 164 Slowest Speed 220 | 160 220 Overloaded Moves . | . . Propulsion Burnouts . | . . Robots Hopped . | . . Cave-ins Triggered . | . . Exploration Rate (%) 26 | 7 46 Regions Visited 1 Branch Regions . Pre-discovered Areas 2 | . 2 Known Exits Taken . | . . Unknown Exits Taken 1 | 1 . Scrap Searched . | . . Spaces Dug . | . . Terrain Destroyed . | . . Melee . | . . Projectile . | . . AOE . | . . Terrain Rammed . | . . Walls Destroyed . | . . Machines Disabled . | . . Actions | -11 -10 --------- Run | Yrd Mat Total 554 | 131 423 Wait . | . . Move 437 | 107 330 Hop . | . . Pick Up 3 | 1 2 Fast Attach 10 | 7 3 Attach . | . . Detach . | . . Swap 5 | 1 4 Drop . | . . Fire 78 | 2 76 Melee . | . . Ram 2 | . 2 Kick . | . . Crush 19 | 13 6 Escape Stasis . | . . Rewire . | . . Trap . | . . Miscellaneous . | . . Route ------- -11/Scrapyard -10/Materials (discovered 1 exit: *Mat) History --------- Turn | Location | Event 9 | -11/Scrapyard | Discovered new exit (range 16) 210 | -11/Scrapyard | Entered Materials 306 | -10/Materials | Build established: Mutant 645 | -10/Materials | Discovered new exit (range 13) 682 | -10/Materials | Identified exit to Materials 825 | -10/Materials | Core integrity fell below 50% 955 | -10/Materials | Core integrity fell below 20% 966 | -10/Materials | Destroyed by G-34 Mercenary with Small Laser Last Messages --------------- Slammed into M-13 Machinist. Acquired Flight Unit. R-06 Scavenger collects Lgt. Assault Rifle. R-06 Scavenger collects Lgt. Ion Engine. Slammed into U-05 Engineer. Slammed into R-06 Scavenger. Connecting with Recycling Unit... >>Force(Tunnel) DISCOVERED[-9/Mines] ALERT: Suspicious activity at Recycling Unit M002. Dispatching Investigation squad. Connecting with Terminal... >>Alert(Check) Current Alert Level: 1-H ALERT: Suspicious activity at Terminal M007. Dispatching Investigation squad. Lgt. Nuclear Core destroyed. Lgt. Treads destroyed. G-34 Mercenary destroyed. Flight Unit destroyed. Map ----- +----------------------------------------------------+ | ?????????# ???????????????????????? | | ?????????? ???????????????????????? | | ?????????? ???????????????????????? | | ?????????? ???????????????????????? | | ?????????? ???????????????????????? | | ??????????# #???????????????????????? | | ?????????## #???????????????????????? | | ?????????? #???????????????????????? | | ???????? #???????????????????????? | | #???###?# #??????########?????????? | | #????"" # #??????# #?????????? | | #?????" # #??????# """ #?????????? | | ##????? / +??????# "Y #???????#?? | | +??????# =#??????# """ #?????? #?? | | #???????#= #??????# #?????? #?? | | #???????# =#??????# #????? #?? | | #???????# ###########+######?? #?? | | #???????# g #? #?? | | ######### ########### #" #? ##? | | #??# #g#" # #? | | ##########+##### """ + #" # #? | | # # # """ # #T + #? | | # # """ """ # """??# #" # #? | | # # """ """ # ????# #" # #? | | # # """ """ #??????# #" #?# ###? | | + # #??????#@# #?? #??? | | # + #??????#g######???#??? | | # # #??????=% ???????????? | | # # #?????? "???????????? | | # # ###########?????# ""??????????? | | # ######???????????????# ""??????????? | | # #????????????????????# ?????????? | | # #????????????????????# """?????????? | | # #????????????????????# "???????????? | | # #????????????????????# "???????????? | | # #????????????????????# ???????????? | | # #????????????????????####???????????? | | # #???????????????????????????????????? | | # #???????????????????????????????????? | | # #???????????????????????????????????? | | # #???????????????????????????????????? | | # #???????????????????????????????????? | | # #####???????????????????????????????? | | # #???????????????????????????????? | | #???????????????????????????????? | | #???????????????????????????????? | | #???????????????????????????????? | | # #???????????????????????????????? | | ## ##???????????????????????????????? | | ## #????????????????????????????????? | +----------------------------------------------------+ Best States ------------- Heat Dissipation 25 Energy Generation 14 Energy Capacity 250 Matter Stores 300 Matter Capacity 300 Sight Range 16 Terrain Scan Range 16 Terrain Scan Density 10 ECM Strength 1 Evasion (%) 40 Recoil Reduction 2 Item Schematics ----------------- None Robot Schematics ------------------ None Fabricated ------------ Nothing Alien Tech Used ----------------- None Achievements -------------- None Challenges ------------ None Game ------ Seed CooledGuidanceSegregator Manual? 0 Play Time 00:12:55 Cumulative 27.9 hours Start 2024.12.13 @ 01:12:43 End 2024.12.13 @ 01:20:55 Sessions 1 Manual Loads 0 Difficulty Rogue Special Mode None Game No. 41 Rogue 41 Adventurer 0 Explorer 0 Win Type - Total 0 Types 0/0/0/0/0/0/0/0/0 Lore% 22 Gallery% 26 Achievement% 25 Wizard Run 0 Options --------- Layout 1 ASCII 0 Keyboard 1 Movement Numpad Keybinds 0 Fullscreen 1 Font 24/Smallcaps Map View 50x35 Zoom Use 0% Tactical HUD 0 Map Filters NONE Filters NONE Steam 1 RUN: c92a9589-3b9d-4daf-a206-2f2207a941d3